bitfinex/quotes_SOLUSD_20260118
["timestamp","ask_amount","ask_price","bid_price","bid_amount"]
[1768779357743,9.85354307,139.71,139.66,26.90590463]
[1768779358650,12.78286461,139.71,139.66,26.90590463]
[1768779359956,17.01135837,139.71,139.66,19.74578979]
[1768779360151,4.22849376,139.69,139.62,4.06578979]
[1768779360350,35.77873425,139.75,139.62,4.06578979]
[1768779360351,7.15496706,139.77,139.69,4.06578979]
[1768779360677,7.15496706,139.77,139.63,16.39617847]
[1768779360678,11.38273244,139.78,139.72,16.84770833]
[1768779360841,11.38273244,139.78,139.73,15.68]
[1768779361352,4.22849376,139.76,139.7,5.62504931]
[1768779361571,9.85354307,139.76,139.71,15.68]
[1768779361742,9.85354307,139.76,139.69,16.84940269]
[1768779361743,9.85354307,139.75,139.69,11.22435338]
[1768779361942,9.85354307,139.74,139.7,15.68]
[1768779362366,5.62504931,139.73,139.7,15.68]
[1768779362662,9.85354307,139.73,139.7,15.68]
[1768779362848,12.78105242,139.72,139.65,4.06578979]
[1768779363042,9.76822767,139.71,139.64,9.68967073]
[1768779363244,25.05010019,139.72,139.66,4.06578979]
[1768779363245,7.15717148,139.72,139.66,4.06578979]
[1768779363451,12.78060661,139.73,139.67,4.06578979]
[1768779364266,16.92495334,139.73,139.67,4.06578979]
[1768779364467,16.92495334,139.73,139.67,11.22506246]
[1768779364769,11.3010724,139.73,139.68,5.62388094]
[1768779365156,16.92495334,139.73,139.67,16.8489434]
[1768779365467,11.3010724,139.73,139.68,5.62388094]
[1768779365651,7.15672567,139.73,139.68,12.78290867]
[1768779365856,4.14434673,139.78,139.71,9.68967073]
[1768779366165,9.76822767,139.78,139.72,5.62388094]
[1768779366665,7.15461114,139.77,139.73,9.68967073]
[1768779367064,7.15415386,139.78,139.74,5.62388094]
[1768779367576,7.15415386,139.78,139.74,4.06578979]
[1768779367760,7.15358752,139.79,139.74,9.68967073]
[1768779367951,25.03755633,139.79,139.74,4.06578979]
[1768779368311,25.03755633,139.79,139.75,5.62388094]
[1768779368670,25.03755633,139.79,139.74,9.68967073]
[1768779369166,34.80220234,139.81,139.75,9.68967073]
[1768779369374,5.62388094,139.79,139.73,9.68967073]
[1768779369575,9.76822767,139.79,139.73,25.36967073]
[1768779369744,7.15409929,139.78,139.73,25.36967073]
[1768779369946,7.15409929,139.78,139.73,32.52628268]
[1768779370174,16.92232696,139.78,139.73,15.68]
[1768779370345,11.29844602,139.78,139.73,21.30388094]
[1768779370548,7.15409929,139.78,139.74,9.68967073]
[1768779371256,7.15372901,139.79,139.75,9.68967073]
[1768779371464,7.15372901,139.79,139.76,5.62388094]
[1768779371659,25.03590699,139.8,139.76,5.62388094]
[1768779371864,7.15307582,139.8,139.76,5.62388094]
[1768779372371,7.15307582,139.8,139.75,4.06578979]
[1768779372551,7.35160822,139.83,139.79,9.68967073]
[1768779372751,0.2,139.83,139.79,9.68967073]
[1768779372987,0.2,139.83,139.82,5.62388094]
[1768779373157,7.35156734,139.83,139.79,4.06578979]
[1768779374278,7.35156734,139.83,139.79,16.84324465]
[1768779374455,0.2,139.83,139.79,16.84324465]
[1768779374892,7.35161793,139.83,139.79,16.84324465]
[1768779375183,12.97549887,139.83,139.79,4.06578979]
[1768779375481,7.35161793,139.83,139.79,9.68967073]
[1768779375973,7.35161793,139.83,139.72,71.00752493]
[1768779375974,4.16269265,139.57,139.44,45.59600187]
[1768779376160,10.48362102,139.54,139.53,30.0]
[1768779376353,9.87109313,139.55,139.51,6.62636341]
[1768779376558,4.24721219,139.52,139.43,6.07057414]
[1768779376778,5.62388094,139.5,139.43,6.07057414]
[1768779376970,4.24721219,139.51,139.44,21.28388094]
[1768779377375,9.87109313,139.51,139.44,21.28388094]
[1768779377588,4.24721219,139.51,139.44,21.28388094]
[1768779377755,11.41537926,139.51,139.45,12.79490998]
[1768779377951,7.16816707,139.51,139.45,12.79490998]
[1768779378173,7.16816707,139.51,139.45,7.17102904]
[1768779378359,7.16746856,139.52,139.46,5.62388094]
[1768779378557,12.7913495,139.52,139.45,12.79490998]
[1768779378763,12.7913495,139.52,139.46,15.68]
[1768779378955,9.87109313,139.49,139.43,0.4466932]
[1768779379175,5.62388094,139.48,139.43,0.4466932]
[1768779379481,4.24721219,139.49,139.44,15.68]
[1768779379696,5.62388094,139.48,139.44,15.68]
[1768779380070,11.41642432,139.49,139.44,15.68]
[1768779380270,5.62388094,139.48,139.44,15.68]
[1768779381175,5.62388094,139.46,139.43,0.4466932]
[1768779381394,11.41672731,139.48,139.44,15.68]
[1768779381694,5.62388094,139.46,139.44,15.68]
[1768779381883,5.62388094,139.46,139.43,0.4466932]
[1768779382082,5.62388094,139.46,139.44,15.68]
[1768779382284,4.24721219,139.49,139.43,0.4466932]
[1768779382486,9.78395211,139.51,139.45,21.30388094]
[1768779382802,4.16007117,139.51,139.45,21.30388094]
[1768779383004,25.07702227,139.57,139.46,5.62388094]
[1768779383330,35.82244112,139.58,139.46,7.17051484]
[1768779383331,9.78395211,139.52,139.46,7.17051484]
[1768779383510,4.16007117,139.51,139.44,12.79503261]
[1768779383677,5.62388094,139.5,139.45,22.85085]
[1768779383879,9.78395211,139.5,139.45,22.85085]
[1768779384294,9.78395211,139.5,139.45,28.47473094]
[1768779384501,4.16007117,139.5,139.46,15.68]
[1768779384681,9.78395211,139.5,139.44,5.62388094]
[1768779384997,4.16007117,139.5,139.47,15.68]
[1768779385192,9.78395211,139.5,139.47,15.68]
[1768779385592,5.62388094,139.49,139.45,7.17098371]
[1768779385801,4.16007117,139.49,139.46,15.68]
[1768779385976,9.78395211,139.49,139.46,15.68]
[1768779386593,4.16007117,139.52,139.46,28.47431188]
[1768779386792,9.78395211,139.52,139.46,28.47431188]
[1768779387289,5.62388094,139.51,139.46,28.47431188]
[1768779387991,5.62388094,139.51,139.46,22.85043094]
[1768779388198,9.78395211,139.52,139.46,22.85043094]
[1768779388399,9.78395211,139.52,139.46,28.47431188]
[1768779388712,4.16007117,139.56,139.5,5.62388094]
[1768779388883,9.78395211,139.56,139.51,15.68]
[1768779389081,4.16007117,139.56,139.51,21.30388094]
[1768779389303,5.62388094,139.57,139.52,5.62388094]
[1768779389490,9.78395211,139.58,139.52,5.62388094]
[1768779389904,4.16007117,139.58,139.53,5.62388094]
[1768779390206,5.62388094,139.56,139.51,15.68]
[1768779390403,5.62388094,139.56,139.51,22.84745519]
[1768779390850,9.78395211,139.54,139.5,7.16839282]
[1768779391105,9.78395211,139.54,139.51,15.68]
[1768779391277,4.16007117,139.54,139.51,22.84791814]
[1768779391919,4.16007117,139.54,139.52,15.68]
[1768779392797,4.16007117,139.54,139.5,7.16840392]
[1768779392997,4.16007117,139.54,139.51,15.7]
[1768779393308,4.16007117,139.54,139.52,15.7]
[1768779394230,4.16007117,139.61,139.53,5.91914088]
[1768779394388,9.78395211,139.61,139.56,5.62388094]
[1768779394590,4.16007117,139.61,139.58,7.16435019]
[1768779394994,4.16007117,139.61,139.57,28.48870749]
[1768779395193,5.62388094,139.6,139.57,15.67]
[1768779395405,16.94701658,139.61,139.57,15.67]
[1768779395719,9.78395211,139.61,139.57,22.83482573]
[1768779396328,4.16007117,139.61,139.57,25.0769845]
[1768779396510,4.16007117,139.61,139.58,15.7]
[1768779396707,4.16007117,139.61,139.58,28.48791471]
[1768779397018,9.78395211,139.65,139.59,5.62388094]
[1768779397321,9.78395211,139.65,139.58,40.77490925]
[1768779397322,9.78395211,139.65,139.6,5.62388094]
[1768779397526,9.78395211,139.65,139.6,21.32388094]
[1768779398116,16.9448365,139.65,139.6,28.48712192]
[1768779398315,11.32095556,139.65,139.61,5.62388094]
[1768779398720,0.2,139.66,139.62,21.30388094]
[1768779398918,0.2,139.66,139.6,7.16324098]
[1768779398919,4.32504663,139.66,139.63,15.68]
[1768779399224,17.10926131,139.66,139.63,15.68]
[1768779399426,4.12504663,139.63,139.59,7.16377556]
[1768779399717,25.26094952,139.66,139.59,7.16377556]
[1768779399718,13.14892757,139.65,139.6,22.8431739]
[1768779399908,9.74892757,139.65,139.6,28.46705484]
[1768779400416,11.28586091,139.65,139.6,7.1631739]
[1768779400616,15.0,139.63,139.43,0.40544273]
[1768779400827,35.8037952,139.65,139.27,7.0079282]
[1768779400828,21.49,139.43,139.27,7.0079282]
[1768779401024,5.62388094,139.32,139.31,15.68]
[1768779401224,5.62388094,139.33,139.21,3.7450339]
[1768779401523,5.62388094,139.27,139.15,17.18]
[1768779401722,5.62388094,139.27,139.14,0.4466932]
[1768779401723,5.62388094,139.2,139.14,0.4466932]
[1768779401925,5.34408856,139.27,139.14,0.4466932]
[1768779402221,26.83408856,139.24,139.06,3.74901922]
[1768779402417,78.82637119,139.28,139.07,15.68]
[1768779402418,5.62388094,139.19,139.07,15.68]
[1768779402625,25.13826042,139.23,139.09,4.35994671]
[1768779402922,25.07826043,139.23,139.13,4.35994671]
[1768779403103,7.18168487,139.25,139.15,4.35994671]
[1768779403424,5.62388094,139.21,139.16,15.68]
[1768779403598,5.62388094,139.19,139.14,4.35994671]
[1768779403798,5.62388094,139.2,139.15,15.68]
[1768779403994,25.13500623,139.25,139.14,4.35994671]
[1768779404220,5.62388094,139.2,139.11,4.35994671]
[1768779404419,5.62388094,139.18,139.12,20.03994671]
[1768779404600,30.48234898,139.23,139.12,4.35994671]
[1768779404601,5.62388094,139.17,139.12,4.35994671]
[1768779404794,30.48234898,139.23,139.13,15.7]
[1768779404995,5.62388094,139.17,139.13,22.8873792]
[1768779405199,5.62388094,139.17,139.13,7.1873792]
[1768779405405,7.18236012,139.23,139.14,15.7]
[1768779405721,5.62388094,139.18,139.13,7.18720463]
[1768779405893,5.34408856,139.27,139.14,20.05994671]
[1768779406098,5.62388094,139.22,139.16,4.35994671]
[1768779406295,5.62388094,139.22,139.18,4.35994671]
[1768779406493,5.62388094,139.22,139.19,15.7]
[1768779406716,15.0,139.38,139.21,4.35994671]
[1768779406925,5.62388094,139.26,139.22,20.05994671]
[1768779407146,7.7593232,139.38,139.22,20.05994671]
[1768779407147,5.62388094,139.25,139.22,4.35994671]
[1768779407312,5.62388094,139.27,139.23,20.05994671]
[1768779407623,5.62388094,139.28,139.24,4.35994671]
[1768779407799,21.49,139.35,139.25,20.05994671]
[1768779408121,5.62388094,139.31,139.26,4.35994671]
[1768779408319,25.11300853,139.37,139.27,7.18029726]
[1768779408503,5.62388094,139.33,139.28,4.35994671]
[1768779408936,17.93117824,139.43,139.29,4.35994671]
[1768779409230,21.49,139.39,139.27,11.54024397]
[1768779409521,8.9952919,139.34,139.3,20.05994671]
[1768779409902,8.9952919,139.33,139.31,15.7]
[1768779410114,8.9952919,139.34,139.31,15.7]
[1768779410310,8.9952919,139.35,139.31,22.8780737]
[1768779410499,8.9952919,139.33,139.31,15.7]
[1768779410706,8.9952919,139.33,139.32,15.7]
[1768779410926,7.17568572,139.36,139.32,15.7]
[1768779411309,8.9952919,139.33,139.32,15.7]
[1768779411507,8.9952919,139.33,139.3,11.53865734]
[1768779411704,8.9952919,139.33,139.32,15.399652]
[1768779411903,8.9952919,139.33,139.3,11.53865734]
[1768779412117,8.9952919,139.34,139.31,15.7]
[1768779413017,26.83408856,139.41,139.31,15.7]
[1768779413353,7.17360114,139.4,139.32,15.7]
[1768779413702,8.9952919,139.34,139.33,15.7]
[1768779414324,8.9952919,139.35,139.33,15.7]
[1768779414619,7.17411579,139.39,139.33,15.7]
[1768779414620,8.9952919,139.36,139.33,15.7]
[1768779415226,8.9952919,139.35,139.3,11.53821273]
[1768779415411,8.9952919,139.35,139.31,22.87800122]
[1768779415611,8.9952919,139.35,139.31,27.3629269]
[1768779415818,8.9952919,139.35,139.32,15.7]
[1768779416527,8.9952919,139.36,139.33,4.48492568]
[1768779417441,7.17405448,139.4,139.33,4.48492568]
[1768779417739,8.9952919,139.37,139.33,4.48492568]
[1768779418033,7.17405448,139.4,139.33,4.48492568]
[1768779418034,8.9952919,139.36,139.34,15.7]
[1768779418813,8.9952919,139.35,139.28,4.48492568]
[1768779419038,8.9952919,139.36,139.32,4.48492568]
[1768779419339,8.9952919,139.36,139.33,15.72]
[1768779419717,8.9952919,139.37,139.33,20.20492568]
[1768779419919,8.9952919,139.36,139.33,20.20492568]
[1768779420135,8.9952919,139.36,139.33,4.48492568]
[1768779420335,8.9952919,139.36,139.34,15.72]
[1768779420530,8.9952919,139.36,139.35,4.08e-06]
[1768779420935,16.17083397,139.37,139.35,4.08e-06]
[1768779421114,21.49,139.4,139.35,3.09e-06]
[1768779421315,8.9952919,139.37,139.36,4.1e-06]
[1768779421715,4.21117498,139.41,139.33,6.90673726]
[1768779421922,4.21117498,139.41,139.34,15.72]
[1768779421923,8.9952919,139.38,139.34,15.72]
[1768779422442,8.9952919,139.4,139.34,24.7152919]
[1768779422626,25.10400229,139.42,139.34,24.7152919]
[1768779422627,8.9952919,139.38,139.34,15.72]
[1768779422830,8.9952919,139.38,139.34,22.89666901]
[1768779423044,8.9952919,139.39,139.34,22.89666901]
[1768779423227,8.9952919,139.39,139.34,27.38159469]
[1768779423947,7.17308657,139.41,139.34,27.38159469]
[1768779424132,8.9952919,139.38,139.34,27.38159469]
[1768779424949,8.98986227,139.39,139.34,27.38159469]
[1768779425326,16.16406209,139.39,139.34,27.38159469]
[1768779425644,8.98986227,139.38,139.34,27.38159469]
[1768779426342,3.6136505,139.36,139.32,11.66254515]
[1768779426521,7.17419982,139.39,139.28,4.48492568]
[1768779426522,8.98986227,139.33,139.28,4.48492568]
[1768779426724,8.98986227,139.31,139.28,4.48492568]
[1768779426924,8.98986227,139.31,139.29,20.18492568]
[1768779427144,8.98986227,139.31,139.29,4.48492568]
[1768779427350,8.98986227,139.31,139.3,15.7]
[1768779427666,7.17701658,139.34,139.3,15.7]
[1768779427958,8.98986227,139.33,139.31,15.7]
[1768779428251,25.11674758,139.35,139.31,15.7]
[1768779428447,8.98986227,139.33,139.31,15.7]
[1768779428848,5.65519613,139.33,139.31,15.7]
[1768779429043,5.65519613,139.34,139.31,15.7]
[1768779429556,22.10440149,139.39,139.32,4.48492568]
[1768779429859,39.56308701,139.46,139.32,4.48492568]
[1768779429860,5.65519613,139.37,139.32,4.48492568]
[1768779430554,7.17360114,139.4,139.33,4.48492568]
[1768779430728,5.65519613,139.38,139.33,4.48492568]
[1768779431330,5.65519613,139.38,139.33,11.66175623]
[1768779432444,7.1745128,139.39,139.33,11.66175623]
[1768779432628,12.82970893,139.39,139.33,11.66175623]
[1768779432830,5.65519613,139.38,139.34,4.48492568]
[1768779433031,5.65519613,139.38,139.35,15.72]
[1768779433464,12.82997821,139.38,139.35,15.72]
[1768779433637,4.16906323,139.4,139.31,17.94558897]
[1768779433638,5.65519613,139.37,139.36,15.72]
[1768779433841,5.65519613,139.38,139.36,15.72]
[1768779434051,5.65519613,139.38,139.37,15.72]
[1768779434235,5.65519613,139.38,139.33,4.48492568]
[1768779434431,12.82937808,139.39,139.34,20.20492568]
[1768779435261,4.16906323,139.44,139.36,4.48492568]
[1768779435555,5.65519613,139.44,139.39,4.48492568]
[1768779436058,5.65519613,139.44,139.4,15.7]
[1768779436561,25.09696738,139.46,139.41,4.48492568]
[1768779436858,5.65519613,139.45,139.41,4.48492568]
[1768779437435,12.82673944,139.44,139.41,4.48492568]
[1768779437630,5.65519613,139.47,139.42,4.48492568]
[1768779438863,5.65519613,139.46,139.42,4.48492568]
[1768779439165,21.69,139.52,139.46,4.48492568]
[1768779439335,7.16794495,139.51,139.47,15.7]
[1768779439671,5.65519613,139.51,139.47,15.7]
[1768779440332,5.65519613,139.49,139.46,4.48492568]
[1768779440532,5.65519613,139.5,139.48,15.7]
[1768779440761,12.82353914,139.51,139.48,15.7]
[1768779440950,5.65519613,139.5,139.48,15.7]
[1768779441334,12.82353914,139.51,139.48,15.7]
[1768779441534,7.36744733,139.52,139.48,20.18492568]
[1768779441760,13.02264346,139.52,139.48,20.18492568]
[1768779442271,5.85519613,139.52,139.49,4.48492568]
[1768779442670,13.02269506,139.52,139.49,4.48492568]
[1768779443141,7.36749893,139.52,139.49,4.48492568]
[1768779443457,0.2,139.52,139.49,4.48492568]
[1768779443760,0.2,139.52,139.49,11.65370199]
[1768779444349,7.16601702,139.55,139.5,4.39103761]
[1768779444666,7.16601702,139.55,139.51,20.09103761]
[1768779444831,5.65519613,139.54,139.51,20.09103761]
[1768779445242,12.82182324,139.54,139.51,20.09103761]
[1768779445761,12.82122599,139.55,139.51,20.09103761]
[1768779446568,5.65519613,139.54,139.51,20.09103761]
[1768779447062,25.08075576,139.55,139.51,4.39103761]
[1768779447234,5.65519613,139.54,139.52,15.7]
[1768779447739,23.56992203,139.55,139.52,15.7]
[1768779447952,23.56992203,139.55,139.52,15.67]
[1768779448148,5.65519613,139.55,139.52,15.67]
[1768779448677,4.0606536,139.59,139.52,21.32519613]
[1768779448833,29.13098068,139.61,139.52,15.67]
[1768779449037,29.13098068,139.61,139.54,5.65519613]
[1768779449337,7.16383695,139.59,139.55,20.09103761]
[1768779449968,5.65519613,139.58,139.55,20.09103761]
[1768779450138,5.65519613,139.58,139.56,15.7]
[1768779450560,5.65519613,139.57,139.52,4.39103761]
[1768779450740,5.65519613,139.55,139.52,4.39103761]
[1768779451065,5.65519613,139.54,139.5,20.09103761]
[1768779451434,5.65519613,139.54,139.5,4.39103761]
[1768779451734,12.82177904,139.54,139.5,4.39103761]
[1768779452135,12.82177904,139.54,139.5,11.55939064]
[1768779453062,7.16605782,139.55,139.51,4.39103761]
[1768779453242,5.65519613,139.54,139.51,4.39103761]
[1768779453953,7.16605782,139.55,139.51,4.39103761]
[1768779454153,7.16605782,139.55,139.51,11.55892743]
[1768779454366,5.65519613,139.54,139.51,11.55892743]
[1768779454661,7.16605782,139.55,139.51,11.55892743]
[1768779454864,5.65519613,139.55,139.51,11.55892743]
[1768779455169,5.65519613,139.56,139.52,4.39103761]
[1768779455964,5.65519613,139.57,139.53,11.55795511]
[1768779456941,5.65519613,139.57,139.53,4.39103761]
[1768779457136,5.65519613,139.56,139.53,4.39103761]
[1768779457467,5.65519613,139.54,139.44,4.39103761]
[1768779457676,5.65519613,139.5,139.46,7.17051484]
[1768779457835,5.65519613,139.5,139.46,29.49045437]
[1768779458266,5.65519613,139.49,139.46,11.56416727]
[1768779459437,5.65519613,139.5,139.46,11.56416727]
[1768779459642,22.30320744,139.53,139.48,4.39365243]
[1768779459643,5.65519613,139.53,139.48,4.39365243]
[1768779459838,4.38518225,139.56,139.49,4.39365243]
[1768779460053,5.65519613,139.54,139.49,4.39365243]
[1768779460560,25.07702227,139.57,139.51,4.39365243]
[1768779460764,5.65519613,139.54,139.51,4.39365243]
[1768779461473,7.16616932,139.55,139.51,11.56140417]
[1768779461653,12.82136545,139.55,139.51,11.56140417]
[1768779462057,5.65519613,139.54,139.51,11.56140417]
[1768779462367,7.16616932,139.55,139.51,11.56140417]
[1768779462673,5.65519613,139.58,139.53,4.39365243]
[1768779462962,12.81954632,139.58,139.53,20.09365243]
[1768779463266,5.65519613,139.54,139.51,4.39365243]
[1768779463766,5.65519613,139.53,139.5,15.7]
[1768779464460,5.65519613,139.52,139.49,27.26247848]
[1768779464650,5.65519613,139.52,139.49,11.56247848]
[1768779464845,5.65519613,139.52,139.49,27.26247848]
[1768779465565,5.65519613,139.52,139.49,4.39365243]
[1768779466160,12.82214407,139.53,139.49,11.56247598]
[1768779466678,4.38518225,139.59,139.52,4.39365243]
[1768779466882,4.38518225,139.58,139.52,4.39365243]
[1768779467051,4.38518225,139.56,139.5,11.5619234]
[1768779467382,5.65519613,139.54,139.5,11.5619234]
[1768779467550,4.38518225,139.56,139.5,27.2619234]
[1768779467896,5.65519613,139.55,139.5,27.2619234]
[1768779468576,5.65519613,139.53,139.49,7.16882339]
[1768779468881,12.82235459,139.53,139.49,7.16882339]
[1768779469077,12.82235459,139.53,139.47,7.16987978]
[1768779469078,5.65519613,139.51,139.47,7.16987978]
[1768779469260,5.65519613,139.51,139.47,11.56353221]
[1768779470760,5.65519613,139.51,139.47,27.26353221]
[1768779471561,12.82282486,139.52,139.47,27.26353221]
[1768779471761,7.16762873,139.52,139.47,32.91872834]
[1768779471957,25.07522567,139.58,139.51,10.04884856]
[1768779472172,7.16435019,139.58,139.53,4.39365243]
[1768779472360,7.16435019,139.58,139.53,10.04884856]
[1768779472889,12.81954632,139.58,139.53,10.04884856]
[1768779473056,12.81954632,139.58,139.53,17.21554446]
[1768779474380,7.16435019,139.58,139.53,17.21554446]
[1768779474587,12.81954632,139.58,139.53,17.21554446]
[1768779475484,7.16435019,139.58,139.53,17.21554446]
[1768779476283,7.16435019,139.58,139.54,9.75145094]
[1768779476986,12.81954632,139.58,139.54,15.7]
[1768779477179,10.05195936,139.57,139.53,15.7]
[1768779478186,30.7304218,139.58,139.53,28.52201399]
[1768779478390,4.79081645,139.57,139.53,25.45145094]
[1768779478565,4.79081645,139.57,139.54,5.65519613]
[1768779478765,4.79081645,139.57,139.53,32.61825025]
[1768779478980,4.79081645,139.57,139.54,9.75145094]
[1768779479261,7.16435019,139.58,139.54,9.75145094]
[1768779479473,4.79562515,139.57,139.54,9.75145094]
[1768779479669,7.16435019,139.58,139.54,9.75145094]
[1768779479871,4.79562705,139.57,139.54,9.75145094]
[1768779480080,7.16435019,139.58,139.54,9.75145094]
[1768779480280,4.80118224,139.57,139.56,5.65519613]
[1768779480481,0.30118224,139.58,139.56,21.33519613]
[1768779480694,11.64577623,139.6,139.56,21.33519613]
[1768779481482,17.30097236,139.6,139.56,15.68]
[1768779482066,11.64577623,139.6,139.56,21.33519613]
[1768779482679,17.30097236,139.6,139.56,15.68]
[1768779483082,11.64577623,139.6,139.56,21.33519613]
[1768779483280,17.30097236,139.6,139.56,15.68]
[1768779483691,4.48245245,139.59,139.56,15.68]
[1768779483990,10.13764858,139.58,139.55,15.68]
[1768779484603,17.30224974,139.58,139.55,15.68]
[1768779485180,11.64705361,139.58,139.55,15.68]
[1768779485613,11.64705361,139.58,139.54,28.50159671]
[1768779486475,4.48245245,139.6,139.56,4.09625481]
[1768779486675,11.64596592,139.6,139.57,5.65519613]
[1768779486874,11.64596592,139.6,139.57,5.63244109]
[1768779487382,11.64596592,139.6,139.56,9.7286959]
[1768779487576,29.55427537,139.6,139.56,5.63244109]
[1768779487781,4.48245245,139.59,139.55,5.63244109]
[1768779488179,4.48245245,139.59,139.55,28.47831827]
[1768779488384,4.48245245,139.59,139.55,32.57457308]
[1768779488801,11.64636123,139.59,139.55,16.89457308]
[1768779489004,5.9084162,139.63,139.62,6.22476443]
[1768779489189,0.2,139.66,139.62,6.22476443]
[1768779489502,0.2,139.66,139.64,5.63244109]
[1768779490103,1e-08,139.66,139.65,5.63244109]
[1768779490405,1e-08,139.66,139.64,5.63244109]
[1768779490981,1e-08,139.66,139.64,12.79347896]
[1768779491396,1e-08,139.66,139.65,5.63244109]
[1768779493102,1e-08,139.66,139.65,12.79320013]
[1768779493900,15.7,139.7,139.65,30.69509773]
[1768779494098,15.7,139.7,139.65,25.06265664]
[1768779494314,15.7,139.7,139.67,5.63244109]
[1768779494497,15.7,139.7,139.68,5.63244109]
[1768779495106,15.7,139.7,139.68,12.79156945]
[1768779495715,15.7,139.7,139.67,12.7921485]
[1768779497193,15.7,139.7,139.66,12.79252403]
[1768779497408,15.7,139.7,139.68,5.63244109]
[1768779498514,15.7,139.7,139.68,12.7913486]
[1768779499189,22.85825158,139.7,139.67,5.63244109]
[1768779499392,20.18245245,139.7,139.63,17.90416145]
[1768779499719,4.48245245,139.69,139.65,12.79284894]
[1768779500110,4.48245245,139.69,139.66,7.16016979]
[1768779500799,4.48245245,139.74,139.68,5.63244109]
[1768779501116,4.48245245,139.74,139.66,7.16016979]
[1768779501117,4.48245245,139.7,139.66,7.16016979]
[1768779502815,4.48245245,139.7,139.66,12.79261088]
[1768779504223,11.64079057,139.7,139.66,5.63244109]
[1768779504524,4.48245245,139.7,139.66,12.79252115]
[1768779505828,5.34408856,139.76,139.66,12.79252115]
[1768779505829,3.73463733,139.82,139.7,4.30373098]
[1768779506123,5.63244109,139.76,139.71,5.63244109]
[1768779506426,22.83519731,139.76,139.71,12.78983509]
[1768779506720,5.63244109,139.75,139.7,7.15808435]
[1768779506918,5.63244109,139.74,139.7,7.15808435]
[1768779507119,5.63244109,139.74,139.69,12.79103484]
[1768779507307,5.63244109,139.72,139.68,7.15919741]
[1768779507926,9.93617207,139.72,139.68,7.15919741]
[1768779508128,25.61617207,139.72,139.67,12.79210308]
[1768779508425,32.77371988,139.72,139.67,12.79210308]
[1768779508725,32.77371988,139.72,139.67,7.15966199]
[1768779509101,4.30373098,139.71,139.63,17.90413654]
[1768779509302,4.30373098,139.67,139.63,7.16137969]
[1768779509614,4.30373098,139.66,139.62,7.16226912]
[1768779510014,4.30373098,139.66,139.62,12.79471021]
[1768779510218,4.30373098,139.66,139.62,7.16226912]
[1768779510412,15.68,139.67,139.63,5.63244109]
[1768779510716,4.30373098,139.71,139.66,5.63244109]
[1768779510920,15.68,139.7,139.67,5.63244109]
[1768779511229,15.68,139.7,139.66,5.63244109]
[1768779511615,15.68,139.7,139.65,4.30373098]
[1768779511821,15.68,139.7,139.66,5.63244109]
[1768779512530,15.68,139.7,139.66,12.79258378]
[1768779513009,19.98373098,139.71,139.67,5.63244109]
[1768779513404,4.30373098,139.71,139.67,5.63244109]
[1768779513632,19.98373098,139.71,139.67,5.63244109]
[1768779513842,4.30373098,139.7,139.66,12.79258378]
[1768779515050,4.30373098,139.7,139.66,7.16014269]
[1768779515329,11.46202192,139.7,139.66,7.16014269]
[1768779515958,4.30373098,139.66,139.6,5.63244109]
[1768779516234,15.68,139.66,139.62,5.63244109]
[1768779516805,15.68,139.66,139.61,4.30373098]
[1768779517008,17.09590755,139.67,139.62,5.63244109]
[1768779517211,4.30373098,139.7,139.64,5.63244109]
[1768779517532,19.98373098,139.69,139.64,5.63244109]
[1768779517735,4.10298434,139.68,139.62,4.30373098]
[1768779518039,4.10298434,139.68,139.64,5.63244109]
[1768779518247,11.26252713,139.68,139.64,5.63244109]
[1768779518540,4.10298434,139.67,139.63,12.7940582]
[1768779520143,4.10298434,139.67,139.64,7.16113141]
[1768779522024,4.10298434,139.67,139.63,12.7942258]
[1768779524150,16.89526824,139.67,139.63,7.16178471]
[1768779525447,5.63244109,139.64,139.6,7.16327179]
[1768779525627,4.10298434,139.63,139.59,11.38154125]
[1768779526030,4.10298434,139.6,139.55,22.1313171]
[1768779526229,4.10298434,139.6,139.56,5.63244109]
[1768779526537,4.10298434,139.6,139.55,22.1313171]
[1768779526538,4.10298434,139.6,139.55,5.63244109]
[1768779526740,4.10298434,139.6,139.55,12.79814486]
[1768779526931,4.10298434,139.6,139.55,17.01598212]
[1768779527557,4.10298434,139.59,139.55,12.79814486]
[1768779527762,4.10298434,139.59,139.56,5.63244109]
[1768779528157,4.10298434,139.59,139.55,12.79814486]
[1768779529142,4.10298434,139.59,139.55,7.16570377]
[1768779529345,4.10298434,139.59,139.55,12.79814486]
[1768779529544,4.10298434,139.58,139.54,12.79871518]
[1768779529761,4.10298434,139.58,139.54,7.16627409]
[1768779530843,4.10298434,139.58,139.54,12.79871518]
[1768779531466,4.10298434,139.58,139.54,30.71472492]
[1768779532158,11.26737298,139.58,139.54,7.16627409]
[1768779534145,4.25494389,139.57,139.51,4.30373098]